fUST/lending_fUST_20251028
["ID","MTS","AMOUNT","RATE_DAILY","PERIOD"]
[392533102,1761621032678,-300.0,0.00018154,2]
[392533104,1761621032687,-300.0,0.00018154,2]
[392533106,1761621032697,-300.0,0.00018154,2]
[392533108,1761621032707,-1004.02211653,0.00018154,2]
[392533224,1761621040062,795.3777975,0.00018,2]
[392533265,1761621040954,-195.97788347,0.00018154,2]
[392533267,1761621040964,-500.0,0.00018155,2]
[392533269,1761621040973,-500.0,0.00018155,2]
[392533271,1761621040984,-500.0,0.00018155,2]
[392533273,1761621040994,-500.0,0.00018155,2]
[392533275,1761621041005,-500.0,0.00018155,2]
[392533277,1761621041014,-500.0,0.00018155,2]
[392533279,1761621041023,-500.0,0.00018155,2]
[392533281,1761621041032,-249.95034764,0.00018155,2]
[392533290,1761621041116,-3e-08,0.00018155,2]
[392533328,1761621043697,-250.04965233,0.00018155,2]
[392533329,1761621043707,-176.14907551,0.00018155,2]
[392533330,1761621043718,-500.0,0.00018155,2]
[392533331,1761621043727,-494.5273309,0.00018155,2]
[392533332,1761621043739,-500.0,0.00018155,2]
[392533333,1761621043749,-333.19771929,0.00018155,2]
[392533334,1761621043769,-166.80228071,0.00018155,2]
[392533335,1761621043779,-500.0,0.00018155,2]
[392533337,1761621043789,-475.02050724,0.00018155,2]
[392533339,1761621043799,-500.0,0.00018155,2]
[392533340,1761621043810,-500.0,0.00018155,2]
[392533341,1761621043819,-152.07721205,0.00018155,2]
[392533342,1761621043831,-347.92278795,0.00018155,2]
[392533343,1761621043841,-500.0,0.00018155,2]
[392533344,1761621043852,-187.27459456,0.00018155,2]
[392533345,1761621043862,-163.16746822,0.00018155,2]
[392533347,1761621046789,-336.83253178,0.00018155,2]
[392533348,1761621046799,-500.0,0.00018155,2]
[392533349,1761621046808,-500.0,0.00018155,2]
[392533350,1761621046818,-492.10170942,0.00018155,2]
[392533352,1761621157160,800.0,0.00017936,2]
[392533353,1761621157218,800.0,0.00017921,2]
[392533355,1761621196331,180.7102855,0.00017292,2]
[392533357,1761621287780,4822.50523518,0.00018,2]
[392533358,1761621294175,-169.92478341,0.00018056,2]
[392533359,1761621294203,-63.9451637,0.00018091,2]
[392533360,1761621295694,1457.16024938,0.00018,2]
[392533361,1761621296558,-217.7713434,0.00018091,2]
[392533362,1761621305010,1043.28631707,0.00018,2]
[392533364,1761621312152,-117.39909609,0.00018091,2]
[392533365,1761621312175,-163.78232001,0.0001812,2]
[392533366,1761621312974,2442.22848392,0.00018,2]
[392533367,1761621327019,-300.0,0.0001812,2]
[392533368,1761621328943,281.1814161,0.00018,2]
[392533369,1761621332766,-171.96387056,0.0001812,2]
[392533370,1761621357016,-164.25380943,0.0001812,2]
[392533371,1761621357037,-176.05176098,0.00018153,2]
[392533372,1761621359238,-123.94823902,0.00018153,2]
[392533373,1761621359263,-243.74512497,0.00018154,2]
[392533374,1761621361374,-367.77198108,0.00018154,2]
[392533375,1761621365803,-184.08213632,0.00018153,2]
[392533376,1761621369025,-115.91786368,0.00018153,2]
[392533377,1761621369048,-42.80812793,0.00018154,2]
[392533378,1761621371013,-167.93959279,0.00018055,2]
[392533379,1761621373785,-339.96783866,0.00018055,2]
[392533380,1761621380711,-344.54939174,0.00018055,2]
[392533381,1761621383786,-257.00026284,0.00018055,2]
[392533382,1761621386167,-221.46483719,0.00018055,2]
[392533383,1761621391373,-47.43465242,0.00018055,2]
[392533384,1761621391395,-183.6971265,0.00018154,2]
[392533385,1761621393991,-151.60387663,0.00018153,2]
[392533386,1761621397955,-282.98479061,0.00018153,2]
[392533387,1761621417101,-65.41133276,0.00018153,2]
[392533388,1761621417123,-362.53258652,0.00018153,2]
[392533389,1761621421483,-137.46741348,0.00018153,2]
[392533390,1761621421511,-73.69310997,0.00018153,2]
[392533391,1761621424332,-194.98700156,0.00018152,2]
[392533392,1761621451966,2000.0,0.00030136,120]
[392533393,1761621461676,2000.0,0.00030136,120]
[392533394,1761621483172,1500.0,0.00030136,120]
[392533395,1761621490159,1500.0,0.00030136,120]
[392533396,1761621550820,2000.0,0.00030136,120]
[392533397,1761621559786,2000.0,0.00030136,120]
[392533398,1761621566831,2000.0,0.00030136,120]
[392533399,1761621597109,2000.0,0.00030136,120]
[392533401,1761621606400,389.0,0.00030136,120]
[392533402,1761621666478,1200.0,0.00030136,120]
[392533403,1761621673422,1200.0,0.00030136,120]
[392533404,1761621685552,622.75100301,0.00030136,120]
[392533405,1761621692589,1447.6,0.00030136,120]
[392533407,1761621822079,-174.22865663,0.00018043,2]
[392533429,1761622002248,-169.92478341,0.00018052,2]
[392533430,1761622002269,-213.62573738,0.00018054,2]
[392533431,1761622017030,-170.10775606,0.00018054,2]
[392533433,1761622019258,-111.79420302,0.00018054,2]
[392533434,1761622019281,-48.07176657,0.00018064,2]
[392533435,1761622023213,-196.00735381,0.00018064,2]
[392533436,1761622029521,-299.99264619,0.00018064,2]
[392533439,1761622063435,-262.13824562,0.00018053,2]
[392533443,1761622077510,-186.0125625,0.00018053,2]
[392533444,1761622087972,186.0125625,0.00018,2]
[392533445,1761622108019,-218.51005731,0.00018053,2]
[392533446,1761622109562,-214.72286181,0.00018053,2]
[392533447,1761622122611,-112.48717995,0.00018053,2]
[392533448,1761622122635,-92.34282005,0.00018077,2]
[392533449,1761622125844,433.23291912,0.00018,2]
[392533450,1761622141383,204.83,0.00018,2]
[392533451,1761622142093,-203.75590937,0.00018077,2]
[392533452,1761622163870,203.75590937,0.00018,2]
[392533455,1761622218075,300.0,0.00018,2]
[392533459,1761622228784,300.0,0.00018,2]
[392533479,1761622231804,-152.91232461,0.00018051,2]
[392533480,1761622231814,-200.0,0.00018051,2]
[392533481,1761622231824,-189.51841311,0.00018077,2]
[392533482,1761622231833,-30.78731346,0.00018139,2]
[392533483,1761622231861,-788.23278954,0.00018139,2]
[392533484,1761622231912,-566.82674917,0.00018139,2]
[392533497,1761622237746,-543.87952788,0.00018139,2]
[392533528,1761622239999,-857.87390751,0.00018139,2]
[392533535,1761622240054,-821.16412554,0.00018139,2]
[392533537,1761622240063,-151.0,0.00018145,2]
[392533539,1761622240072,-151.0,0.00018145,2]
[392533541,1761622240081,-151.0,0.00018145,2]
[392533543,1761622240090,-151.0,0.00018145,2]
[392533545,1761622240099,-151.0,0.00018145,2]
[392533547,1761622240108,-151.0,0.00018145,2]
[392533549,1761622240117,-151.0,0.00018145,2]
[392533551,1761622240126,-151.0,0.00018145,2]
[392533553,1761622240136,-151.0,0.00018145,2]
[392533555,1761622240145,-151.0,0.00018145,2]
[392533557,1761622240154,-198.81384698,0.00018145,2]
[392533559,1761622240163,-300.0,0.00018149,2]
[392533561,1761622240173,-300.0,0.00018149,2]
[392533563,1761622240182,-1200.0,0.00018149,2]
[392533565,1761622240191,-500.0,0.0001815,2]
[392533567,1761622240200,-500.0,0.0001815,2]
[392533569,1761622240209,-500.0,0.0001815,2]
[392533571,1761622240218,-444.2811404,0.0001815,2]
[392533573,1761622240228,-500.0,0.0001815,2]
[392533575,1761622240237,-500.0,0.0001815,2]
[392533577,1761622240246,-486.31152107,0.0001815,2]
[392533579,1761622240255,-500.0,0.0001815,2]
[392533581,1761622240264,-500.0,0.0001815,2]
[392533583,1761622240274,-500.0,0.0001815,2]
[392533585,1761622240282,-500.0,0.0001815,2]
[392533587,1761622240292,-500.0,0.0001815,2]
[392533589,1761622240303,-500.0,0.0001815,2]
[392533591,1761622240313,-500.0,0.0001815,2]
[392533593,1761622240323,-500.0,0.0001815,2]
[392533595,1761622240332,-500.0,0.0001815,2]
[392533597,1761622240341,-500.0,0.0001815,2]
[392533599,1761622240351,-500.0,0.0001815,2]
[392533601,1761622240360,-500.0,0.0001815,2]
[392533603,1761622240370,-318.72745946,0.0001815,2]
[392533605,1761622240379,-573.72068217,0.0001815,2]
[392533607,1761622240389,-44404.60150674,0.00018151,2]
[392533609,1761622240398,-312.298,0.00018153,2]
[392533611,1761622240407,-500.0,0.00018153,2]
[392533613,1761622240416,-500.0,0.00018153,2]
[392533614,1761622240425,-502.47097694,0.00018153,2]
[392533616,1761622240435,-500.0,0.00018154,2]
[392533618,1761622240444,-500.0,0.00018154,2]
[392533621,1761622240454,-500.0,0.00018154,2]
[392533623,1761622240463,-500.0,0.00018154,2]
[392533624,1761622240472,-500.0,0.00018154,2]
[392533626,1761622240481,-508.85,0.00018154,2]
[392533628,1761622240490,-424.10577676,0.00018155,2]
[392533630,1761622240499,-274.41727259,0.00018155,2]
[392533632,1761622240509,-162.03,0.00018155,2]
[392533634,1761622240518,-500.0,0.00018155,2]
[392533636,1761622240528,-500.0,0.00018155,2]
[392533638,1761622240537,-421.27672764,0.00018155,2]
[392533641,1761622240548,-45156.7349043,0.00018156,2]
[392533642,1761622240558,-168.0,0.00018164,2]
[392533645,1761622240567,-993.87090719,0.00018204,2]
[392533646,1761622240577,-152.47548936,0.00018225,2]
[392533648,1761622240586,-993.87090719,0.00018356,2]
[392533650,1761622240595,-1859.54492727,0.00018394,2]
[392533653,1761622240606,-993.87090719,0.00018507,2]
[392533655,1761622240618,-800.0,0.00018551,2]
[392533657,1761622240627,-168.0,0.00018574,2]
[392533659,1761622240637,-1596.46241275,0.0001863,2]
[392533661,1761622240647,-3588.44838825,0.0001863,2]
[392533662,1761622240657,-412.13299058,0.0001863,2]
[392533664,1761622240666,-168.276385,0.0001863,2]
[392533666,1761622240676,-3205.62,0.00018655,2]
[392533668,1761622240685,-3205.62,0.00018655,2]
[392533670,1761622240695,-3205.62,0.00018655,2]
[392533672,1761622240705,-3205.62,0.00018655,2]
[392533674,1761622240715,-3205.62,0.00018655,2]
[392533676,1761622240724,-3205.62,0.00018655,2]
[392533678,1761622240734,-3205.62,0.00018655,2]
[392533680,1761622240743,-3205.62,0.00018655,2]
[392533682,1761622240752,-3205.62,0.00018655,2]
[392533684,1761622240762,-3205.62,0.00018655,2]
[392533686,1761622240771,-3205.62,0.00018655,2]
[392533688,1761622240780,-3205.62,0.00018655,2]
[392533690,1761622240789,-258.29828551,0.00018655,2]
[392533693,1761622240801,-2019.43637253,0.00018655,2]
[392533759,1761622241409,-3e-08,0.00018655,2]
[392533896,1761622242995,-533.99159341,0.00018655,2]
[392534062,1761622245844,-393.89374852,0.00018655,2]
[392534063,1761622245856,-1092.9626643,0.00018655,2]
[392534069,1761622271729,1479.0,0.00030137,120]
[392534070,1761622276994,158.13824562,0.00018,2]
[392534071,1761622303527,-300.0,0.00018055,2]
[392534072,1761622303549,-32.08304246,0.00018056,2]
[392534073,1761622323121,1360.623118,0.00017332,2]
[392534080,1761622338152,300.0,0.00018,2]
[392534085,1761622392260,198.77418147,0.00017954,2]
[392534086,1761622394254,198.77418143,0.00017978,2]
[392534087,1761622449880,1868.4224599,0.00018,2]
[392534088,1761622465304,152.99578814,0.00017955,2]
[392534089,1761622576633,300.0,0.00018,2]
[392534090,1761622587304,300.0,0.00018,2]
[392534091,1761622598551,300.0,0.00018,2]
[392534092,1761622609101,300.0,0.00018,2]
[392534093,1761622731736,198.77418143,0.00017955,2]
[392534094,1761622750784,152.99578811,0.00017951,2]
[392534096,1761623021088,152.99578811,0.00017949,2]
[392534097,1761623066478,198.77418143,0.00017953,2]
[392534098,1761623068494,198.77418143,0.00017956,2]
[392534107,1761623281382,152.99578811,0.00017947,2]
[392534110,1761623380654,378.556023,0.00013699,2]
[392534114,1761623432088,-940.34868179,0.00018004,2]
[392534115,1761623432101,-1734.10356782,0.00018004,2]
[392534116,1761623432111,-475.90479968,0.00018006,2]
[392534117,1761623432120,-276.62,0.00018044,3]
[392534118,1761623432129,-829.91,0.00018044,3]
[392534119,1761623432139,-300.0,0.00018045,2]
[392534120,1761623432149,-235.0,0.00018045,2]
[392534122,1761623432159,-1200.0,0.00018045,2]
[392534124,1761623432168,-500.0,0.00018045,2]
[392534126,1761623432178,-165.14572456,0.00018045,2]
[392534127,1761623432187,-500.0,0.00018045,2]
[392534128,1761623432197,-500.0,0.00018045,2]
[392534129,1761623432206,-213.55964899,0.00018045,2]
[392534130,1761623432216,-500.0,0.00018045,2]
[392534131,1761623432225,-500.0,0.00018045,2]
[392534132,1761623432235,-385.48161847,0.00018045,2]
[392534133,1761623432244,-500.0,0.00018045,2]
[392534134,1761623432253,-500.0,0.00018045,2]
[392534135,1761623432262,-637.12945884,0.00018045,2]
[392534136,1761623432272,-500.0,0.00018045,2]
[392534137,1761623432281,-500.0,0.00018045,2]
[392534138,1761623432291,-500.0,0.00018045,2]
[392534139,1761623432301,-500.0,0.00018045,2]
[392534140,1761623432311,-500.0,0.00018045,2]
[392534141,1761623432320,-1200.0,0.00018046,2]
[392534142,1761623432329,-3117.15889509,0.00018047,2]
[392534143,1761623432943,-625.36181593,0.00018047,2]
[392534144,1761623432981,-339.46150479,0.00018045,2]
[392534145,1761623432993,-500.0,0.00018045,2]
[392534146,1761623433003,-63.99224941,0.00018045,2]
[392534147,1761623433014,-436.00775059,0.00018045,2]
[392534148,1761623433023,-265.70416256,0.00018045,2]
[392534149,1761623437883,-234.29583744,0.00018045,2]
[392534150,1761623437893,-500.0,0.00018045,2]
[392534151,1761623437902,-470.9485812,0.00018045,2]
[392534152,1761623437937,-29.0514188,0.00018045,2]
[392534153,1761623437947,-500.0,0.00018045,2]
[392534154,1761623437957,-500.0,0.00018045,2]
[392534155,1761623437966,-87.40117384,0.00018045,2]
[392534156,1761623437978,-412.59882616,0.00018045,2]
[392534157,1761623437988,-268.22904997,0.00018045,2]
[392534159,1761623438000,-226.78912078,0.00018045,2]
[392534160,1761623438010,-500.0,0.00018045,2]
[392534161,1761623438019,-500.0,0.00018045,2]
[392534162,1761623438029,-500.0,0.00018045,2]
[392534163,1761623438038,-500.0,0.00018045,2]
[392534164,1761623438047,-500.0,0.00018045,2]
[392534165,1761623438058,-500.0,0.00018045,2]
[392534166,1761623438068,-500.0,0.00018045,2]
[392534167,1761623438077,-500.0,0.00018045,2]
[392534168,1761623438087,-500.0,0.00018045,2]
[392534169,1761623438097,-500.0,0.00018045,2]
[392534170,1761623438107,-500.0,0.00018045,2]
[392534171,1761623438116,-500.0,0.00018045,2]
[392534172,1761623438125,-500.0,0.00018045,2]
[392534173,1761623438135,-500.0,0.00018045,2]
[392534174,1761623438144,-295.12515096,0.00018045,2]
[392534175,1761623438166,-204.87484904,0.00018045,2]
[392534176,1761623438176,-388.24969464,0.00018045,2]
[392534177,1761623438188,-111.75030536,0.00018045,2]
[392534178,1761623438198,-420.95353447,0.00018045,2]
[392534186,1761623440497,-79.04646553,0.00018045,2]
[392534187,1761623440507,-500.0,0.00018045,2]
[392534188,1761623440516,-500.0,0.00018045,2]
[392534189,1761623440527,-500.0,0.00018045,2]
[392534190,1761623440537,-500.0,0.00018045,2]
[392534191,1761623440547,-500.0,0.00018045,2]
[392534192,1761623440558,-500.0,0.00018045,2]
[392534193,1761623440569,-500.0,0.00018045,2]
[392534194,1761623440579,-500.0,0.00018045,2]
[392534195,1761623440589,-500.0,0.00018045,2]
[392534196,1761623440599,-500.0,0.00018045,2]
[392534197,1761623440609,-500.0,0.00018045,2]
[392534198,1761623440619,-500.0,0.00018045,2]
[392534199,1761623440629,-500.0,0.00018045,2]
[392534200,1761623440640,-500.0,0.00018045,2]
[392534201,1761623440651,-500.0,0.00018045,2]
[392534202,1761623440661,-248.37707427,0.00018045,2]
[392534203,1761623440671,-500.0,0.00018045,2]
[392534204,1761623440681,-500.0,0.00018045,2]
[392534205,1761623440691,-500.0,0.00018045,2]
[392534206,1761623440701,-500.0,0.00018045,2]
[392534207,1761623440712,-500.0,0.00018045,2]
[392534208,1761623440722,-500.0,0.00018045,2]
[392534209,1761623440732,-500.0,0.00018045,2]
[392534210,1761623440742,-500.0,0.00018045,2]
[392534211,1761623440752,-500.0,0.00018045,2]
[392534212,1761623440763,-500.0,0.00018045,2]
[392534213,1761623440772,-500.0,0.00018053,2]
[392534214,1761623440783,-462.09008035,0.00018053,2]
[392534215,1761623440792,-500.0,0.00018053,2]
[392534216,1761623440802,-582.94872674,0.00018053,2]
[392534217,1761623440814,-172078.98911474,0.00018054,2]
[392534218,1761623440828,-1000.0,0.00018054,2]
[392534219,1761623440840,-500.0,0.00018054,2]
[392534223,1761623446339,-4122.44919583,0.00018054,2]
[392534226,1761623532512,152.99578811,0.00017956,2]
[392534230,1761623609442,10000.01,0.00017954,2]
[392534231,1761623609464,10000.01,0.00017954,2]
[392534232,1761623609485,10000.01,0.00017954,2]
[392534233,1761623609509,10000.01,0.00017954,2]
[392534234,1761623609530,10000.01,0.00017954,2]
[392534235,1761623609553,10000.01,0.00017954,2]
[392534236,1761623609576,84128.4990101,0.00017954,2]
[392534237,1761623618231,-4837.370423,0.00017051,2]
[392534238,1761623628262,325.269154,0.00017944,3]
[392534239,1761623628284,504.590846,0.00017944,3]
[392534242,1761623638801,829.88,0.00017944,3]
[392534243,1761623642398,300.0,0.00017953,2]
[392534247,1761623671752,500.0,0.00017953,2]
[392534248,1761623671782,323.46305625,0.00017953,2]
[392534249,1761623672246,608.06410872,0.00017953,2]
[392534250,1761623672696,482.16238942,0.00017953,2]
[392534251,1761623672725,500.0,0.00017953,2]
[392534252,1761623672751,332.77979675,0.00017953,2]
[392534253,1761623672778,500.0,0.00017953,2]
[392534254,1761623672808,500.0,0.00017953,2]
[392534255,1761623672839,500.0,0.00017953,2]
[392534256,1761623672867,500.0,0.00017953,2]
[392534257,1761623672898,500.0,0.00017953,2]
[392534258,1761623672928,500.0,0.00017953,2]
[392534259,1761623672966,500.0,0.00017953,2]
[392534260,1761623672999,500.0,0.00017953,2]
[392534261,1761623673030,500.0,0.00017953,2]
[392534262,1761623673064,500.0,0.00017953,2]
[392534263,1761623673092,500.0,0.00017953,2]
[392534264,1761623673125,119.06980286,0.00017953,2]
[392534265,1761623673148,380.93019714,0.00017953,2]
[392534266,1761623673177,500.0,0.00017953,2]
[392534267,1761623673206,500.0,0.00017953,2]
[392534268,1761623673239,500.0,0.00017953,2]
[392534269,1761623673266,500.0,0.00017953,2]
[392534270,1761623673293,500.0,0.00017953,2]
[392534271,1761623673322,500.0,0.00017953,2]
[392534272,1761623673349,500.0,0.00017953,2]
[392534273,1761623673387,500.0,0.00017953,2]
[392534274,1761623673415,500.0,0.00017953,2]
[392534275,1761623673466,500.0,0.00017953,2]
[392534276,1761623673516,500.0,0.00017953,2]
[392534277,1761623673584,500.0,0.00017953,2]
[392534278,1761623673625,387.48377074,0.00017953,2]
[392534279,1761623673743,500.0,0.00017953,2]
[392534280,1761623674180,500.0,0.00017953,2]
[392534281,1761623674258,500.0,0.00017953,2]
[392534282,1761623690549,500.0,0.00017953,2]
[392534283,1761623690592,500.0,0.00017953,2]
[392534284,1761623690622,500.0,0.00017953,2]
[392534285,1761623690893,231.59603212,0.00017953,2]
[392534286,1761623690917,205.75790457,0.00017953,2]
[392534287,1761623690945,500.0,0.00017953,2]
[392534288,1761623690980,500.0,0.00017953,2]
[392534289,1761623691010,500.0,0.00017953,2]
[392534290,1761623691046,500.0,0.00017953,2]
[392534291,1761623702559,300.0,0.00017953,2]
[392534292,1761623704872,1200.0,0.00017953,2]
[392534293,1761623717026,847.67867365,0.000179,2]
[392534294,1761623718957,847.67867363,0.00017938,2]
[392534295,1761623762689,300.0,0.00017953,2]
[392534296,1761623772989,152.99578811,0.00017875,2]
[392534298,1761623822927,300.0,0.00017953,2]
[392534299,1761623859294,1200.0,0.00017953,2]
[392534300,1761623882394,300.0,0.00017953,2]
[392534301,1761623942710,300.0,0.00017953,2]
[392534302,1761624002188,300.0,0.00017953,2]
[392534303,1761624003830,152.99578811,0.00017875,2]
[392534304,1761624010693,292.52474511,0.00017954,2]
[392534305,1761624010744,178.99,0.00017944,2]
[392534306,1761624026648,-9397.67386309,0.00017954,2]
[392534307,1761624026802,-10000.01,0.00017954,2]
[392534308,1761624026927,-10000.01,0.00017954,2]
[392534309,1761624027049,-10000.01,0.00017954,2]
[392534310,1761624028513,-10000.01,0.00017954,2]
[392534311,1761624028637,-10000.01,0.00017954,2]
[392534312,1761624028784,-10000.01,0.00017954,2]
[392534313,1761624028922,-10000.01,0.00017954,2]
[392534314,1761624029581,-10000.01,0.00017954,2]
[392534315,1761624031583,-10000.01,0.00017954,2]
[392534316,1761624031708,-10000.01,0.00017954,2]
[392534317,1761624031863,-10000.01,0.00017954,2]
[392534318,1761624031960,-10000.01,0.00017954,2]
[392534319,1761624032063,-10000.01,0.00017954,2]
[392534320,1761624056371,565.75983747,0.00017854,2]
[392534321,1761624062681,300.0,0.00017953,2]
[392534322,1761624122408,300.0,0.00017953,2]
[392534323,1761624159523,799.0,0.00017953,2]
[392534324,1761624162890,-300.01106858,0.00017954,2]
[392534325,1761624183123,300.0,0.00017953,2]
[392534326,1761624194282,-196.0,0.00017954,2]
[392534328,1761624219543,152.99578811,0.00017854,2]
[392534329,1761624228807,158.30767505,0.00026728,120]
[392534330,1761624242381,300.0,0.00017953,2]
[392534332,1761624302163,300.0,0.00017953,2]
[392534333,1761624362640,300.0,0.00017953,2]
[392534334,1761624400344,452.60787,0.00017854,2]
[392534335,1761624423101,300.0,0.00017953,2]
[392534336,1761624426623,162.0,0.000178,2]
[392534337,1761624449329,162.0,0.000179,2]
[392534338,1761624462460,200.0,0.0003013,120]
[392534339,1761624465990,5605.64650442,0.00017952,2]
[392534340,1761624466011,10000.01,0.00017952,2]
[392534341,1761624466033,10000.01,0.00017952,2]
[392534342,1761624466053,10000.01,0.00017952,2]
[392534343,1761624466074,10000.01,0.00017952,2]
[392534344,1761624466094,2569.38733863,0.00017952,2]
[392534345,1761624471498,164.2348683,0.000301,120]
[392534346,1761624482463,300.0,0.00017953,2]
[392534347,1761624488155,-7130.62266137,0.00017954,2]
[392534348,1761624488185,-10000.01,0.00017954,2]
[392534349,1761624488319,-10000.01,0.00017954,2]
[392534350,1761624490346,-10000.01,0.00017954,2]
[392534351,1761624490534,-10000.01,0.00017954,2]
[392534352,1761624490722,-10000.01,0.00017954,2]
[392534353,1761624491414,-10000.01,0.00017954,2]
[392534354,1761624491620,-10000.01,0.00017954,2]
[392534355,1761624550366,157.6976018,0.00017041,2]
[392534356,1761624617783,300.0,0.00017,2]
[392534384,1761624632271,-8846.93339686,0.00017954,2]
[392534385,1761624632281,-466.38670368,0.00017954,2]
[392534386,1761624632291,-200.0,0.00017954,2]
[392534387,1761624632300,-300.0,0.00018045,2]
[392534388,1761624632309,-500.0,0.00018047,2]
[392534389,1761624632319,-500.0,0.00018047,2]
[392534390,1761624632328,-180.07057918,0.0001805,2]
[392534391,1761624632337,-14798.75098775,0.00018053,2]
[392534392,1761624632348,-8981.38501955,0.00018053,2]
[392534393,1761624632357,-179.6698006,0.00018053,2]
[392534394,1761624632368,-112.58236207,0.00018053,2]
[392534395,1761624632408,-887.41763793,0.00018053,2]
[392534396,1761624632417,-189.28610383,0.00018053,2]
[392534397,1761624634381,691.0,0.00030136,120]
[392534401,1761624640520,-466.38670368,0.00017954,2]
[392534402,1761624640530,-810.71389617,0.00018053,2]
[392534403,1761624640539,-1000.0,0.00018053,2]
[392534404,1761624640549,-1000.0,0.00018053,2]
[392534405,1761624640559,-1000.0,0.00018053,2]
[392534406,1761624640568,-1000.0,0.00018053,2]
[392534407,1761624640577,-1000.0,0.00018053,2]
[392534408,1761624640586,-1000.0,0.00018053,2]
[392534409,1761624640596,-542.26,0.00018053,2]
[392534410,1761624640605,-151.0,0.00018054,2]
[392534411,1761624640614,-152.78552716,0.00018085,2]
[392534412,1761624640623,-319.002,0.0001812,2]
[392534413,1761624640632,-171.67908278,0.00018155,2]
[392534414,1761624640641,-250.53432319,0.00018607,2]
[392534415,1761624640650,-403.6515735,0.00018621,2]
[392534416,1761624640659,-178.99,0.00018645,2]
[392534417,1761624640668,-500.0,0.00018648,2]
[392534418,1761624640682,-500.0,0.00018648,2]
[392534419,1761624640698,-500.0,0.00018648,2]
[392534420,1761624640712,-382.48377074,0.00018648,2]
[392534421,1761624640724,-243.673053,0.00018649,2]
[392534422,1761624640738,-1000.0,0.00018649,8]
[392534423,1761624640752,-650.47,0.00018649,8]
[392534424,1761624640768,-166.0,0.00018655,2]
[392534425,1761624640781,-163.0,0.00018655,2]
[392534426,1761624640795,-166.0,0.00018655,2]
[392534427,1761624640808,-163.42028319,0.00018655,2]
[392534428,1761624640823,-166.0,0.00018655,2]
[392534429,1761624640836,-331.0,0.00018655,2]
[392534430,1761624640849,-178.19478061,0.00018655,2]
[392534431,1761624640861,-166.0,0.00018655,2]
[392534432,1761624640875,-166.0,0.00018655,2]
[392534433,1761624640891,-305.2196716,0.000187,2]
[392534434,1761624640903,-198.0387555,0.000187,2]
[392534435,1761624640914,-157.3999608,0.000187,2]
[392534436,1761624640927,-1192.8613865,0.000187,2]
[392534437,1761624640939,-190.5078649,0.000187,2]
[392534438,1761624640957,-299.155147,0.000187,2]
[392534439,1761624640971,-153.0,0.000187,2]
[392534440,1761624640984,-299.155147,0.000187,2]
[392534441,1761624640999,-190.5078649,0.000187,2]
[392534442,1761624641013,-153.0,0.000187,2]
[392534443,1761624641029,-168.0,0.0001872,2]
[392534444,1761624641040,-500.0,0.0001872,2]
[392534445,1761624641052,-200.0,0.00018817,18]
[392534446,1761624641066,-452.60786997,0.00018845,2]
[392534447,1761624641080,-487.7,0.0001888,2]
[392534448,1761624641095,-168.0,0.00018896,2]
[392534449,1761624641106,-661.62679752,0.0001898,2]
[392534450,1761624641119,-168.0,0.00019034,2]
[392534451,1761624641133,-168.0,0.00019069,2]